Workbook

Sheet Event Budget
B1: EVENT BUDGET
B2: Projected Subtotal to Date: | C2: =SUM(D5,D13,D18,D23,D28,D35,D44,D52,D58) -> $9,500.00
B3: Actual Subtotal to Date: | C3: =SUM(E5,E13,E18,E23,E28,E35,E44,E52,E58) -> $7,830.00
B4: CATEGORY | D4: PROJECTED SUBTOTAL | E4: ACTUAL SUBTOTAL | F4: COMMENTS
B5: Venue | C5: SUBTOTALS | D5: =SUM(D6:D12) -> $1,500.00 | E5: =SUM(E6:E12) -> $1,200.00
B6: Location Rental | D6: $1,500.00 | E6: $1,200.00
B7: Event Staff
B8: Equipment Rental
B9: Additional Tables / Chairs
B10: AV
B13: Travel | C13: SUBTOTALS | D13: =SUM(D14:D17) -> $1,600.00 | E13: =SUM(E14:E17) -> $1,800.00
B14: Flight / Driving | D14: $1,600.00 | E14: $1,800.00
B15: Lodging
B16: Per Diem
B18: Public Relations | C18: SUBTOTALS | D18: =SUM(D19:D22) -> $1,250.00 | E18: =SUM(E19:E22) -> $950.00
B19: Announcements | D19: $400.00 | E19: $300.00
B20: Graphics | D20: $600.00 | E20: $400.00
B21: Press Releases | D21: $250.00 | E21: $250.00
B23: Décor | C23: SUBTOTALS | D23: =SUM(D24:D27) -> $300.00 | E23: =SUM(E24:E27) -> $280.00
B24: Linens | D24: $300.00 | E24: $280.00
B25: Lighting
B26: Additional Signage
B28: Event Programming | C28: SUBTOTALS | D28: =SUM(D29:D34) -> $2,000.00 | E28: =SUM(E29:E34) -> $1,800.00
B29: Speakers | D29: $1,500.00 | E29: $1,300.00
B30: Performers | D30: $500.00 | E30: $500.00
B31: Video Production
B32: Presentation Graphics
B35: Social Media | C35: SUBTOTALS | D35: =SUM(D36:D43) -> $350.00 | E35: =SUM(E36:E43) -> $350.00
B36: Twitter | D36: $50.00 | E36: $50.00
B37: Facebook | D37: $50.00 | E37: $50.00
B38: Pinterest | D38: $50.00 | E38: $50.00
B39: Instagram | D39: $50.00 | E39: $50.00
B40: Google+ | D40: $50.00 | E40: $50.00
B41: LinkedIn | D41: $50.00 | E41: $50.00
B42: Snapchat | D42: $50.00 | E42: $50.00
B44: Advertising | C44: SUBTOTALS | D44: =SUM(D45:D51) -> $1,400.00 | E44: =SUM(E45:E51) -> $500.00
B45: Online | D45: $400.00 | E45: $300.00
B46: Print | D46: $1,000.00 | E46: $200.00
B47: Outdoor
B48: Radio
B49: Television
B52: Refreshments | C52: SUBTOTALS | D52: =SUM(D53:D57) -> $500.00 | E52: =SUM(E53:E57) -> $500.00
B53: Drinks | D53: $180.00 | E53: $200.00
B54: Food | D54: $320.00 | E54: $300.00
B55: Catering Staff
B58: Other | C58: SUBTOTALS | D58: =SUM(D59:D64) -> $600.00 | E58: =SUM(E59:E64) -> $450.00
B59: Gift Bags | D59: $600.00 | E59: $450.00
B60: Pens
B61: Notebooks
B62: Packet Printing
B66: CLICK HERE TO CREATE EVENT BUDGET TEMPLATES IN SMARTSHEET

Sheet Event Revenue
B1: EVENT REVENUE
B2: Projected Subtotal to Date: | C2: =SUM(H5,H13,H18,H26,H31,H38) -> $63,800.00
B3: Actual Subtotal to Date: | C3: =SUM(J5,J13,J18,J26,J31,J38) -> $65,725.00
B4: CATEGORY | D4: QUANTITY | F4: COST | G4: PROJECTED SUBTOTAL | I4: ACTUAL SUBTOTAL | K4: COMMENTS
B5: Vendors | D5: PROJECTED | E5: ACTUAL | G5: SUBTOTAL | H5: =SUM(G6:H12) -> $23,350.00 | I5: SUBTOTAL | J5: =SUM(I6:J12) -> $24,200.00
B6: Entrance Kiosk | D6: 1 | E6: 1 | F6: $800.00 | G6: =D6*F6 -> $800.00 | I6: =E6*F6 -> $800.00
B7: Exit Kiosk | D7: 1 | E7: 1 | F7: $800.00 | G7: =D7*F7 -> $800.00 | I7: =E7*F7 -> $800.00
B8: Space - Large | D8: 15 | E8: 14 | F8: $650.00 | G8: =D8*F8 -> $9,750.00 | I8: $9,100.00
B9: Space - Medium | D9: 20 | E9: 20 | F9: $450.00 | G9: $9,000.00 | I9: $9,000.00
B10: Space - Small | D10: 10 | E10: 15 | F10: $300.00 | G10: $3,000.00 | I10: $4,500.00
G11: 0 | I11: 0
G12: 0 | I12: 0
B13: Sponsor / Partnerships | D13: PROJECTED | E13: ACTUAL | G13: SUBTOTAL | H13: =SUM(G14:H17) -> $7,400.00 | I13: SUBTOTAL | J13: =SUM(I14:J17) -> $8,600.00
B14: Named Sponsor | D14: 1 | E14: 1 | F14: $5,000.00 | G14: =D14*F14 -> $5,000.00 | I14: =E14*F14 -> $5,000.00
B15: Featured Vendor | D15: 2 | E15: 3 | F15: $1,200.00 | G15: =D15*F15 -> $2,400.00 | I15: =E15*F15 -> $3,600.00
G16: 0 | I16: 0
G17: 0 | I17: 0
B18: Program Ads | D18: PROJECTED | E18: ACTUAL | G18: SUBTOTAL | H18: =SUM(G19:H25) -> $15,800.00 | I18: SUBTOTAL | J18: =SUM(I19:J25) -> $16,050.00
B19: Front Cover | D19: 1 | E19: 1 | F19: $800.00 | G19: =D19*F19 -> $800.00 | I19: =E19*F19 -> $800.00
B20: Back Cover | D20: 1 | E20: 1 | F20: $750.00 | G20: =D20*F20 -> $750.00 | I20: =E20*F20 -> $750.00
B21: Full Page | D21: 25 | E21: 20 | F21: $250.00 | G21: $6,250.00 | I21: $5,000.00
B22: Half Page | D22: 50 | E22: 60 | F22: $150.00 | G22: $7,500.00 | I22: $9,000.00
B23: Centerfold | D23: 1 | E23: 1 | F23: $500.00 | G23: $500.00 | I23: $500.00
G24: 0 | I24: 0
G25: 0 | I25: 0
B26: Ticket Sales | D26: PROJECTED | E26: ACTUAL | G26: SUBTOTAL | H26: =SUM(G27:H30) -> $11,500.00 | I26: SUBTOTAL | J26: =SUM(I27:J30) -> $13,325.00
B27: Adult | D27: 500 | E27: 600 | F27: $15.00 | G27: =D27*F27 -> $7,500.00 | I27: =E27*F27 -> $9,000.00
B28: Senior | D28: 300 | E28: 350 | F28: $10.00 | G28: =D28*F28 -> $3,000.00 | I28: =E28*F28 -> $3,500.00
B29: Child | D29: 200 | E29: 165 | F29: $5.00 | G29: $1,000.00 | I29: $825.00
G30: 0 | I30: 0
B31: Product Sales | D31: PROJECTED | E31: ACTUAL | G31: SUBTOTAL | H31: =SUM(G32:H37) -> $3,750.00 | I31: SUBTOTAL | J31: =SUM(I32:J37) -> $2,950.00
B32: Product 1 | D32: 100 | E32: 50 | F32: $15.00 | G32: =D32*F32 -> $1,500.00 | I32: =E32*F32 -> $750.00
B33: Product 2 | D33: 100 | E33: 110 | F33: $10.00 | G33: =D33*F33 -> $1,000.00 | I33: =E33*F33 -> $1,100.00
B34: Product 3 | D34: 100 | E34: 88 | F34: $12.50 | G34: $1,250.00 | I34: $1,100.00
G35: 0 | I35: 0
G36: 0 | I36: =E36*F36 -> 0
G37: 0 | I37: =E37*F37 -> 0
B38: Other | D38: PROJECTED | E38: ACTUAL | G38: SUBTOTAL | H38: =SUM(G39:H46) -> $2,000.00 | I38: SUBTOTAL | J38: =SUM(I39:J46) -> $600.00
B39: Other | D39: 100 | E39: 30 | F39: $20.00 | G39: =D39*F39 -> $2,000.00 | I39: =E39*F39 -> $600.00
G40: =D40*F40 -> 0 | I40: =E40*F40 -> 0
G41: 0 | I41: 0
G42: 0 | I42: 0
G43: 0 | I43: 0
G44: 0 | I44: 0
G45: 0 | I45: 0
G46: =D46*F46 -> 0 | I46: =E46*F46 -> 0

Sheet Event Profit Summary
B1: EVENT REVENUE
B3: BUDGET / REVENUE TOTALS
C4: PROJECTED | D4: ACTUAL
B5: TOTAL BUDGET | C5: ='Event Budget'!$C$2 -> $9,500.00 | D5: ='Event Budget'!$C$3 -> $7,830.00
B6: TOTAL REVENUE | C6: ='Event Revenue'!C2 -> $63,800.00 | D6: ='Event Revenue'!C3 -> $65,725.00
B8: PROFIT TOTALS
C9: PROJECTED | D9: ACTUAL
B10: TOTALS | C10: =SUM(C6-C5) -> $54,300.00 | D10: =SUM(D6-D5) -> $57,895.00

Sheet Chart Data
B1: CHART DATA
B3: CAMPAIGN TYPE | C3: PROJECTED SUBTOTAL | D3: %
B4: ='Event Budget'!B5:C5 -> Venue | C4: ='Event Budget'!D5 -> $1,500.00 | D4: =C4/C13 -> 16%
B5: ='Event Budget'!B13:C13 -> Travel | C5: ='Event Budget'!D13 -> $1,600.00 | D5: =C5/C13 -> 17%
B6: ='Event Budget'!B18:C18 -> Public Relations | C6: ='Event Budget'!D18 -> $1,250.00 | D6: =C6/C13 -> 13%
B7: ='Event Budget'!B23:C23 -> Décor | C7: ='Event Budget'!D23 -> $300.00 | D7: =C7/C13 -> 3%
B8: ='Event Budget'!B28:C28 -> Event Programming | C8: ='Event Budget'!D28 -> $2,000.00 | D8: =C8/C13 -> 21%
B9: ='Event Budget'!B35:C35 -> Social Media | C9: ='Event Budget'!D35 -> $350.00 | D9: =C9/C13 -> 4%
B10: ='Event Budget'!B44:C44 -> Advertising | C10: ='Event Budget'!D44 -> $1,400.00 | D10: =C10/C13 -> 15%
B11: ='Event Budget'!B52:C52 -> Refreshments | C11: ='Event Budget'!D52 -> $500.00 | D11: =C11/C13 -> 5%
B12: ='Event Budget'!B58:C58 -> Other | C12: ='Event Budget'!D58 -> $600.00 | D12: =C12/C13 -> 6%
C13: =SUM(C4:C12) -> $9,500.00
